Workbook

Sheet Cover Page
B1: Department of Managed Health Care/Department of Insurance
B2: Medical Loss Ratio Reporting Form
B3: Dental Coverage
A6: 1. | B6: MLR Reporting Year | C6: 2019
A7: 2. | B7: Enter DMHC Health Plan ID. Insurers may leave this field blank
A8: 3. | B8: Legal Name | C8: Madison National Life Insurance Company, Inc.
A9: 4. | B9: DBA
A10: 5. | B10: Federal Tax Exempt Status? Please enter Yes or No | C10: No
B14: Cell Key:
B15: Blank cells require input from Health plan or Health insurer
B18: Version 4.22.15
B19: Revised Version 5.26.15
B20: Revised Version 4.15.16 corrected dates for Cycle Year (CY)2015-2016 on TABs Parts 1, 2 and 4.
B21: Revised Version 5.10.17 12/31 and 3/31 Columns years to be auto populated on TABs Parts 1 and 2.
B22: Revised Version 5.20.19 Document Accessible

Sheet Pt 1 Summary of Data
B1: Department of Managed Health Care/Department of Insurance
B2: Medical Loss Ratio Reporting Form: Dental Coverage
B3: Part 1 - Summary of Data
J4: =CELL("filename",A1) -> T:\Accounting\Banking & Payables\State Assessments\CA Filing\2019\[MNL Dental-MLR-Reporting-Form-2020 Final with Support.xlsm]Pt 1 Summary of Data
B5: Health Plan ID | H5: Federal Tax Exempt
D6: ='Cover Page'!C7 -> 0 | H6: ='Cover Page'!C10 -> No
B7: Legal Name
D8: ='Cover Page'!C8 -> Madison National Life Insurance Company, Inc.
B9: dBA | E9: Part 1
D10: ='Cover Page'!C9 -> 0
B11: MLR Reporting Year
D12: ='Cover Page'!C6 -> 2019
G14: Health Insurance Coverage | M14: Health Insurance Coverage
G15: DHMO Products | M15: DPPO & Indemnity Products
E16: Individual | G16: Small Group | I16: Large Group | K16: Individual | M16: Small Group | O16: Large Group
E17: Total as of | F17: Total as of | G17: Total as of | H17: Total as of | I17: Total as of | J17: Total as of | K17: Total as of | L17: Total as of | M17: Total as of | N17: Total as of | O17: Total as of | P17: Total as of
D18: Part 1 NOTE: REFER TO MLR INSTRUCTIONS FOR IMPORTANT | E18: ="12/31/"&""&'Cover Page'!C$6 -> 12/31/2019 | F18: =DATE(YEAR(E18)+0,MONTH(E18)+3,DAY(E18)+0) -> 2020-03-31 | G18: ="12/31/"&""&'Cover Page'!C$6 -> 12/31/2019 | H18: =DATE(YEAR(G18)+0,MONTH(G18)+3,DAY(G18)+0) -> 2020-03-31 | I18: ="12/31/"&""&'Cover Page'!C$6 -> 12/31/2019 | J18: =DATE(YEAR(I18)+0,MONTH(I18)+3,DAY(I18)+0) -> 2020-03-31 | K18: ="12/31/"&""&'Cover Page'!C$6 -> 12/31/2019 | L18: =DATE(YEAR(K18)+0,MONTH(K18)+3,DAY(K18)+0) -> 2020-03-31 | M18: ="12/31/"&""&'Cover Page'!C$6 -> 12/31/2019 | N18: =DATE(YEAR(M18)+0,MONTH(M18)+3,DAY(M18)+0) -> 2020-03-31 | O18: ="12/31/"&""&'Cover Page'!C$6 -> 12/31/2019 | P18: =DATE(YEAR(O18)+0,MONTH(O18)+3,DAY(O18)+0) -> 2020-03-31
D19: INFORMATION ABOUT COMPLETING EACH COLUMN AND ROW. | E19: 1 | F19: 2 | G19: 3 | H19: 4 | I19: 5 | J19: 6 | K19: 7 | L19: 8 | M19: 9 | N19: 10 | O19: 11 | P19: 12
B20: 1. | C20: Premium
C21: 1.1 | D21: Total direct premium earned | E21: ='Pt 2 Premium and Claims'!E22+'Pt 2 Premium and Claims'!E23-'Pt 2 Premium and Claims'!E24-'Pt 2 Premium and Claims'!E25 -> 0 | F21: ='Pt 2 Premium and Claims'!F22+'Pt 2 Premium and Claims'!F23-'Pt 2 Premium and Claims'!F24-'Pt 2 Premium and Claims'!F25 -> 0 | G21: ='Pt 2 Premium and Claims'!G22+'Pt 2 Premium and Claims'!G23-'Pt 2 Premium and Claims'!G24-'Pt 2 Premium and Claims'!G25 -> 0 | H21: ='Pt 2 Premium and Claims'!H22+'Pt 2 Premium and Claims'!H23-'Pt 2 Premium and Claims'!H24-'Pt 2 Premium and Claims'!H25 -> 0 | I21: ='Pt 2 Premium and Claims'!I22+'Pt 2 Premium and Claims'!I23-'Pt 2 Premium and Claims'!I24-'Pt 2 Premium and Claims'!I25 -> 0 | J21: ='Pt 2 Premium and Claims'!J22+'Pt 2 Premium and Claims'!J23-'Pt 2 Premium and Claims'!J24-'Pt 2 Premium and Claims'!J25 -> 0 | K21: ='Pt 2 Premium and Claims'!K22+'Pt 2 Premium and Claims'!K23-'Pt 2 Premium and Claims'!K24-'Pt 2 Premium and Claims'!K25 -> 328506.2038 | L21: ='Pt 2 Premium and Claims'!L22+'Pt 2 Premium and Claims'!L23-'Pt 2 Premium and Claims'!L24-'Pt 2 Premium and Claims'!L25 -> 318028.75 | M21: ='Pt 2 Premium and Claims'!M22+'Pt 2 Premium and Claims'!M23-'Pt 2 Premium and Claims'!M24-'Pt 2 Premium and Claims'!M25 -> 259822.7962 | N21: ='Pt 2 Premium and Claims'!N22+'Pt 2 Premium and Claims'!N23-'Pt 2 Premium and Claims'!N24-'Pt 2 Premium and Claims'!N25 -> 251613.1 | O21: ='Pt 2 Premium and Claims'!O22+'Pt 2 Premium and Claims'!O23-'Pt 2 Premium and Claims'!O24-'Pt 2 Premium and Claims'!O25 -> 0 | P21: ='Pt 2 Premium and Claims'!P22+'Pt 2 Premium and Claims'!P23-'Pt 2 Premium and Claims'!P24-'Pt 2 Premium and Claims'!P25 -> 0
B23: 2. | C23: Claims
C24: 2.1 | D24: Total incurred claims (MLR Form Part 2, Line 2.11) | E24: ='Pt 2 Premium and Claims'!E51 -> 0 | F24: ='Pt 2 Premium and Claims'!F51 -> 0 | G24: ='Pt 2 Premium and Claims'!G51 -> 0 | H24: ='Pt 2 Premium and Claims'!H51 -> 0 | I24: ='Pt 2 Premium and Claims'!I51 -> 0 | J24: ='Pt 2 Premium and Claims'!J51 -> 0 | K24: ='Pt 2 Premium and Claims'!K51 -> 90645.48934 | L24: ='Pt 2 Premium and Claims'!L51 -> 98131.45811 | M24: ='Pt 2 Premium and Claims'!M51 -> 87993.51066 | N24: ='Pt 2 Premium and Claims'!N51 -> 91756.25773 | O24: ='Pt 2 Premium and Claims'!O51 -> 0 | P24: ='Pt 2 Premium and Claims'!P51 -> 0
B26: 3. | C26: Federal and State Taxes and Licensing or Regulatory Fees
C27: 3.1 | D27: Federal taxes and assessments incurred by the reporting health plan or health insurer during the MLR reporting year
D28: 3.1 a Federal income taxes deductible from premium in MLR calculations | K28: =Support!E11*L28/(L28+N28) -> 19986.40327 | L28: =Support!G11 -> 24534.68126 | M28: =Support!E11*N28/(L28+N28) -> 8553.596733 | N28: =Support!H11 -> 10500.12684
D29: 3.1 b Other Federal Taxes (other than income tax) and assessments deductible from premium
C30: 3.2 | D30: State insurance, premium and other taxes incurred by the reporting health plan or heath insurer during the MLR reporting year (deductible from premium in MLR calculation)
D31: 3.2 a State income, excise, business, and other taxes
D32: 3.2 b State premium taxes | K32: =Support!E9*L32/(L32+N32) -> 11380.90888 | L32: =Support!G9 -> 9359.915911 | M32: =Support!E9*N32/(L32+N32) -> 12174.09112 | N32: =Support!H9 -> 10012.24686
D33: 3.2 c Community benefit expenditures
C34: 3.3 | D34: Regulatory authority licenses and fees
C35: 3.4 | D35: Total Federal and State Taxes and fees to be excluded from premium | E35: =SUM(E$28:E$29,E$31,E$34+IF($H$6="No",IF(MAX(E$32:E$33)=0,MIN(E$32:E$33),MAX(E$32:E$33)),SUM(E$32:E$33))) -> 0 | F35: 0 | G35: 0 | H35: 0 | I35: 0 | J35: 0 | K35: 31367.31214 | L35: 33894.59717 | M35: 20727.68786 | N35: 20512.37371 | O35: 0 | P35: 0
B37: 4. | C37: Non-Claims Costs
C38: 4.1 | D38: Direct sales salaries and benefits
C39: 4.2 | D39: Agents and brokers fees and commissions | K39: =Support!E7*L39/(L39+N39) -> 44455.84486 | L39: =Support!G7 -> 36561.68757 | M39: =Support!E7*N39/(L39+N39) -> 47554.15514 | N39: =Support!H7 -> 39109.82163
C40: 4.3 | D40: Other taxes
D41: 4.3a Taxes and assessments (exclude amounts reported in Section 3 or Line 10)
D42: 4.3b Fines and penalties of regulatory authorities (exclude amounts reported in Line 3.3)
C43: 4.4 | D43: Other general and administrative expenses | K43: =Support!E8*L43/(L43+N43) -> 69406.39185 | L43: =Support!G8 -> 57081.59529 | M43: =Support!E8*N43/(L43+N43) -> 74243.60815 | N43: =Support!H8 -> 61059.84593
C44: 4.5 | D44: Total non-claims costs | E44: =SUM(SUM(E38:E39)+SUM(E41:E43)) -> 0 | F44: =SUM(SUM(F38:F39)+SUM(F41:F43)) -> 0 | G44: 0 | H44: 0 | I44: 0 | J44: 0 | K44: 113862.2367 | L44: 93643.28286 | M44: 121797.7633 | N44: 100169.6676 | O44: 0 | P44: 0
B46: 5. | C46: Other Indicators or information
C47: 5.1 | D47: Number of covered lives | K47: 224 | L47: 224 | M47: 96 | N47: 96 | Q47: =+N47+L47 -> 320
C48: 5.2 | D48: Member months | K48: 6321 | L48: 6321 | M48: 2755 | N48: 2755
C49: 5.3 | D49: Number of life-years | E49: =E48/12 -> 0 | F49: =F48/12 -> 0 | G49: 0 | H49: =H48/12 -> 0 | I49: 0 | J49: 0 | K49: 526.75 | L49: 526.75 | M49: =M48/12 -> 229.5833333 | N49: =N48/12 -> 229.5833333 | O49: 0 | P49: 0
E50: ="Grand Total as of "&""&TEXT(E$18,"MM/DD/YYYY")&" for ALL markets in col. 1-12." -> Grand Total as of 12/31/2019 for ALL markets in col. 1-12.
B51: 6. | C51: Net investment income and other gain / (loss) | E51: =1675+83+226 -> 1984
B52: 7. | C52: Other Federal income taxes (exclude taxes on Line 3.1a and 3.1b)
B54: Cell Keys:
C55: Blank cells require input from Health plan or Health insurer
C56: Grey cells require no data input
C57: Pink cells require no data input - locked down
C58: Blue cells: computed cell (formula cell)

Sheet Pt 2 Premium and Claims
B1: Department of Managed Health Care/Department of Insurance
B2: Medical Loss Ratio Reporting Form: Dental Coverage
B3: Part 2 - Premium and Claims
B5: Health Plan ID
D6: ='Cover Page'!C7 -> 0
B7: Legal Name
D8: ='Cover Page'!C8 -> Madison National Life Insurance Company, Inc.
B9: dBA | E9: Part 2
D10: ='Cover Page'!C9 -> 0
B11: MLR Reporting Year
D12: ='Cover Page'!C6 -> 2019
G15: Health Insurance Coverage | M15: Health Insurance Coverage
G16: DHMO Products | M16: DPPO & Indemnity Products
E17: Individual | H17: Small Group | I17: Large Group | K17: Individual | M17: Small Group | O17: Large Group
E18: Total as of | F18: Total as of | G18: Total as of | H18: Total as of | I18: Total as of | J18: Total as of | K18: Total as of | L18: Total as of | M18: Total as of | N18: Total as of | O18: Total as of | P18: Total as of
D19: Part 2 NOTE: REFER TO MLR INSTRUCTIONS FOR IMPORTANT | E19: ="12/31/"&""&'Cover Page'!C$6 -> 12/31/2019 | F19: =DATE(YEAR(E19)+0,MONTH(E19)+3,DAY(E19)+0) -> 2020-03-31 | G19: ="12/31/"&""&'Cover Page'!C$6 -> 12/31/2019 | H19: =DATE(YEAR(G19)+0,MONTH(G19)+3,DAY(G19)+0) -> 2020-03-31 | I19: ="12/31/"&""&'Cover Page'!C$6 -> 12/31/2019 | J19: =DATE(YEAR(I19)+0,MONTH(I19)+3,DAY(I19)+0) -> 2020-03-31 | K19: ="12/31/"&""&'Cover Page'!C$6 -> 12/31/2019 | L19: =DATE(YEAR(K19)+0,MONTH(K19)+3,DAY(K19)+0) -> 2020-03-31 | M19: ="12/31/"&""&'Cover Page'!C$6 -> 12/31/2019 | N19: =DATE(YEAR(M19)+0,MONTH(M19)+3,DAY(M19)+0) -> 2020-03-31 | O19: ="12/31/"&""&'Cover Page'!C$6 -> 12/31/2019 | P19: =DATE(YEAR(O19)+0,MONTH(O19)+3,DAY(O19)+0) -> 2020-03-31
D20: INFORMATION ABOUT COMPLETING EACH COLUMN AND ROW. | E20: 1 | F20: 2 | G20: 3 | H20: 4 | I20: 5 | J20: 6 | K20: 7 | L20: 8 | M20: 9 | N20: 10 | O20: 11 | P20: 12
B21: 1. | C21: Premium:
C22: 1.1 | D22: Direct premium written | K22: =587702*L22/(L22+N22) -> 328111.659 | L22: 318028.75 | M22: =587702*N22/(L22+N22) -> 259590.341 | N22: 251613.1
C23: 1.2 | D23: Unearned premium prior year | K23: 442 | M23: 270
C24: 1.3 | D24: Unearned premium MLR Reporting year | K24: =85*L22/(L22+N22) -> 47.45515757 | M24: =85*N22/(L22+N22) -> 37.54484243
C25: 1.4 | D25: Premium balances written off
B27: 2. | C27: Claims:
C28: 2.1 | D28: Claims Paid
D29: 2.1a Claims paid during the MLR reporting year regardless of incurred date | K29: =198856*L30/(L30+N30) -> 102697.5069 | M29: =198856*N30/(L30+N30) -> 96158.49305
D30: 2.1b Claims incurred only during the MLR reporting year, paid through 3/31 of the following year | L30: 95897.46211 | N30: 89791.42453
C31: 2.2 | D31: Direct claim liability
D32: 2.2a Liability as of 12/31 of MLR reporting year for all claims regardless of incurred date | K32: =43395*L30/(L30+N30) -> 22410.98239 | M32: =43395*N30/(L30+N30) -> 20984.01761
D33: 2.2b Liability for claims incurred only during the MLR reporting year, calculated as of 3/31 of the following year
C34: 2.3 | D34: Direct claim liability prior year | K34: 34463 | M34: 29149
C35: 2.4 | D35: Direct claim reserves
D36: 2.4a Reserves as of 12/31 of MLR reporting year for all claims regardless of incurred date
D37: 2.4b Reserves for claims incurred only during the MLR reporting year, calculated as of 3/31 of the following year | L37: 2233.996 | N37: 1964.8332
C38: 2.5 | D38: Direct claim reserves prior year
C39: 2.6 | D39: Experience rating refunds (rate credits) paid
D40: 2.6a Experience rating refunds, with all incurred dates, paid in the MLR reporting year
D41: 2.6b Experience rating refunds associated with premium earned only in the reporting year and paid through 3/31 of the following year
C42: 2.7 | D42: Reserve for experience rating refunds (rate credits)
D43: 2.7a Reserved in MLR reporting year regardless of incurred date
D44: 2.7b Reserves specific to the MLR reporting year through 3/31 of the following year
C45: 2.8 | D45: Reserve for experience rating refunds (rate credits) prior year
C46: 2.9 | D46: Incurred dental incentive pool and bonuses
D47: 2.9a Paid dental incentive pools and bonuses MLR Reporting year
D48: 2.9b Accrued dental incentive pools and bonuses MLR Reporting year
D49: 2.9c Accrued dental incentive pools and bonuses prior year
C50: 2.10 | D50: Contingent benefit and lawsuit reserves
C51: 2.11 | D51: Total incurred claims | E51: =E29+E32-E34+E36-E38+E40+E43-E45+E47+E48-E49+E50 -> 0 | F51: =F30+F33+F37+F41+F44+F47+F48+F50 -> 0 | G51: =G29+G32-G34+G36-G38+G40+G43-G45+G47+G48-G49+G50 -> 0 | H51: =H30+H33+H37+H41+H44+H47+H48+H50 -> 0 | I51: =I29+I32-I34+I36-I38+I40+I43-I45+I47+I48-I49+I50 -> 0 | J51: =J30+J33+J37+J41+J44+J47+J48+J50 -> 0 | K51: =K29+K32-K34+K36-K38+K40+K43-K45+K47+K48-K49+K50 -> 90645.48934 | L51: =L30+L33+L37+L41+L44+L47+L48+L50 -> 98131.45811 | M51: =M29+M32-M34+M36-M38+M40+M43-M45+M47+M48-M49+M50 -> 87993.51066 | N51: =N30+N33+N37+N41+N44+N47+N48+N50 -> 91756.25773 | O51: =O29+O32-O34+O36-O38+O40+O43-O45+O47+O48-O49+O50 -> 0 | P51: =P30+P33+P37+P41+P44+P47+P48+P50 -> 0
C54: Cell Keys:
D55: Blank cells require input from Health plan or Health insurer
D56: Grey cells require no data input
D57: Pink cells require no data input - locked down
D58: Blue cells: computed cell (formula cell)

Sheet Pt 3 Expense Allocation
B1: Department of Managed Health Care/Department of Insurance
B2: Medical Loss Ratio Reporting Form: Dental Coverage
B3: Part 3 - Expense Allocation
B5: Health Plan ID
B6: ='Cover Page'!C7 -> 0 | D6: Part 3
B7: Legal Name
B8: ='Cover Page'!C8 -> Madison National Life Insurance Company, Inc.
B9: dBA
B10: ='Cover Page'!C9 -> 0
B11: MLR Reporting Year
B12: ='Cover Page'!C6 -> 2019
B15: Description of Expense Element (by Type) | C15: NEW | D15: Detailed Description of Expense Allocation Methods
B16: 1 | C16: 2 | D16: 3
B17: 1. Incurred Claims
B18: Includes obligations for services rendered per the policy contract. | D18: Used Company records of paid claims and reserves by state. Reserves were calculated using
B19: Incurred claims includes payments for services already rendered | D19: completion ratios developed throught traditional completion ratio methods. Reserves are allocated
B20: and paid (paid claims) plus reserves. Reserves cover liabilities | D20: down to the policyholder which allows reserves to be allocated by state.
B21: for services already rendered and received by the Company, but
B22: not paid, and those services rendered but not yet received by the
B23: Company.
B24: 2. Federal and State Taxes and Licensing or Regulatory Fees
B25: 2.a Federal taxes and assessments
B26: Federal Taxes | D26: Applied overall company federal tax rate to California Dental Net Income from Operations before tax.
B32: 2.b State insurance, premium and other taxes
B33: Premium and other taxes | D33: Applied taxes based upon percentage of CA Dental Premiums
B39: 2.c Community benefit expenditures
B46: 2.d Regulatory authority licenses and fees
B53: 3. Non-Claims costs
B54: 3.a Direct sales salaries and benefits
B61: 3.b Agents and brokers fees and commissions
B62: Agent Commissions | D62: Based upon CA percentage of Dental commissions.
B68: 3.c Other taxes
B75: 3.d Other general and administrative expenses
B76: Other General and Administrative expenses | D76: Expenses allocated by lines of business based upon employee time studies and to California based upon percentage of California premiums.
B83: Cell Keys:
B84: Blank cells require input from Health plan or Health insurer
B85: Grey cells require no data input
B86: Pink cells require no data input - locked down
B87: Blue cells: computed cell (formula cell)

Sheet Pt 4 MLR Calculation
B1: Department of Managed Health Care/Department of Insurance
B2: Medical Loss Ratio Reporting Form: Dental Coverage
B3: Part 4 - MLR Calculation
B5: Health Plan ID
D6: ='Cover Page'!C7 -> 0 | F6: Part 4
B7: Legal Name
D8: ='Cover Page'!C8 -> Madison National Life Insurance Company, Inc.
B9: dBA
D10: ='Cover Page'!C9 -> 0
B11: MLR Reporting Year
D12: ='Cover Page'!C6 -> 2019
J15: Health Insurance Coverage | V15: Health Insurance Coverage
J16: DHMO Products | V16: DPPO & Indemnity Products
F17: Individual | J17: Small Group | N17: Large Group | R17: Individual | V17: Small Group | Z17: Large Group
D18: Part 4 NOTE: REFER TO MLR INSTRUCTIONS FOR IMPORTANT | E18: PY2 | F18: PY1 | G18: CY | H18: Total | I18: PY2 | J18: PY1 | K18: CY | L18: Total | M18: PY2 | N18: PY1 | O18: CY | P18: Total | Q18: PY2 | R18: PY1 | S18: CY | T18: Total | U18: PY2 | V18: PY1 | W18: CY | X18: Total | Y18: PY2 | Z18: PY1 | AA18: CY | AB18: Total
D19: INFORMATION ABOUT COMPLETING EACH COLUMN AND ROW. | E19: 1 | F19: 2 | G19: 3 | H19: 4 | I19: 5 | J19: 6 | K19: 7 | L19: 8 | M19: 9 | N19: 10 | O19: 11 | P19: 12 | Q19: 13 | R19: 14 | S19: 15 | T19: 16 | U19: 17 | V19: 18 | W19: 19 | X19: 20 | Y19: 21 | Z19: 22 | AA19: 23 | AB19: 24
B20: 1. | C20: Medical Loss Ratio Numerator
C21: 1.1 | D21: Adjusted incurred claims as reported on MLR Form for prior year(s) | Q21: 170715.3897 | R21: 132735.6832 | U21: 220452.642 | V21: 134691.1855
C22: 1.2 | D22: Adjusted incurred claims as of 3/31 of the year following the MLR reporting year (Part 1 Line 2.1) | G22: ='Pt 1 Summary of Data'!F24 -> 0 | H22: =SUM(E22:G22) -> 0 | K22: ='Pt 1 Summary of Data'!H24 -> 0 | L22: =SUM(I22:K22) -> 0 | O22: ='Pt 1 Summary of Data'!J24 -> 0 | P22: =SUM(M22:O22) -> 0 | Q22: 198379.1685 | R22: 147814.1931 | S22: ='Pt 1 Summary of Data'!L24 -> 98131.45811 | T22: =SUM(Q22:S22) -> 444324.8197 | U22: 230339.337 | V22: 138976.4476 | W22: ='Pt 1 Summary of Data'!N24 -> 91756.25773 | X22: =SUM(U22:W22) -> 461072.0424 | AA22: ='Pt 1 Summary of Data'!P24 -> 0 | AB22: =SUM(Y22:AA22) -> 0
C23: 1.3 | D23: MLR numerator (Line 1.2) | E23: =SUM(E$22) -> 0 | F23: =SUM(F$22) -> 0 | G23: =SUM(G$22:G$22) -> 0 | H23: =SUM(E23:G23) -> 0 | I23: =SUM(I$22:I$22) -> 0 | J23: =SUM(J$22:J$22) -> 0 | K23: =SUM(K$22:K$22) -> 0 | L23: =SUM(I23:K23) -> 0 | M23: =SUM(M$22:M$22) -> 0 | N23: =SUM(N$22:N$22) -> 0 | O23: =SUM(O$22:O$22) -> 0 | P23: =SUM(M23:O23) -> 0 | Q23: =SUM(Q$22:Q$22) -> 198379.1685 | R23: =SUM(R$22:R$22) -> 147814.1931 | S23: =SUM(S$22:S$22) -> 98131.45811 | T23: =SUM(Q23:S23) -> 444324.8197 | U23: =SUM(U$22:U$22) -> 230339.337 | V23: =SUM(V$22:V$22) -> 138976.4476 | W23: =SUM(W$22:W$22) -> 91756.25773 | X23: =SUM(U23:W23) -> 461072.0424 | Y23: =SUM(Y$22:Y$22) -> 0 | Z23: =SUM(Z$22:Z$22) -> 0 | AA23: =SUM(AA$22:AA$22) -> 0 | AB23: =SUM(Y23:AA23) -> 0
B25: 2. | C25: Medical Loss Ratio Denominator
C26: 2.1 | D26: Premium earned (Part 1 Line 1.1) | G26: ='Pt 1 Summary of Data'!F21 -> 0 | H26: =SUM(E26:G26) -> 0 | K26: ='Pt 1 Summary of Data'!H21 -> 0 | L26: =SUM(I26:K26) -> 0 | O26: ='Pt 1 Summary of Data'!J21 -> 0 | P26: =SUM(M26:O26) -> 0 | Q26: 508201.2358 | R26: 466858.9939 | S26: ='Pt 1 Summary of Data'!L21 -> 318028.75 | T26: =SUM(Q26:S26) -> 1293088.98 | U26: 544638.4239 | V26: 340193.4788 | W26: ='Pt 1 Summary of Data'!N21 -> 251613.1 | X26: =SUM(U26:W26) -> 1136445.003 | AA26: ='Pt 1 Summary of Data'!P21 -> 0 | AB26: =SUM(Y26:AA26) -> 0
C27: 2.2 | D27: Federal and State taxes and licensing or regulatory fees ( Part 1 Line 3.4) | G27: ='Pt 1 Summary of Data'!F35 -> 0 | H27: =SUM(E27:G27) -> 0 | K27: ='Pt 1 Summary of Data'!H35 -> 0 | L27: =SUM(I27:K27) -> 0 | O27: ='Pt 1 Summary of Data'!J35 -> 0 | P27: =SUM(M27:O27) -> 0 | Q27: =Support!E52+Support!E54 -> 92225.16099 | R27: =Support!E38+Support!E40 -> 68892.01168 | S27: ='Pt 1 Summary of Data'!L35 -> 33894.59717 | T27: =SUM(Q27:S27) -> 195011.7698 | U27: =Support!F52+Support!F54 -> 193271.3955 | V27: =Support!F38+Support!F40 -> 57688.80118 | W27: ='Pt 1 Summary of Data'!N35 -> 20512.37371 | X27: =SUM(U27:W27) -> 271472.5703 | AA27: ='Pt 1 Summary of Data'!P35 -> 0 | AB27: =SUM(Y27:AA27) -> 0
C28: 2.3 | D28: MLR Denominator (Line 2.1 - Line 2.2) | E28: =E$26-E$27 -> 0 | F28: 0 | G28: 0 | H28: =H$26-H$27 -> 0 | I28: =I$26-I$27 -> 0 | J28: =J$26-J$27 -> 0 | K28: 0 | L28: =L$26-L$27 -> 0 | M28: 0 | N28: 0 | O28: 0 | P28: =P$26-P$27 -> 0 | Q28: 415976.0748 | R28: 397966.9822 | S28: 284134.1528 | T28: =T$26-T$27 -> 1098077.21 | U28: 351367.0284 | V28: 282504.6776 | W28: 231100.7263 | X28: =X$26-X$27 -> 864972.4324 | Y28: 0 | Z28: 0 | AA28: 0 | AB28: =AB$26-AB$27 -> 0
B30: 3. | C30: 3.1 | D30: Life-years (Part 1 Line 5.3) | G30: ='Pt 1 Summary of Data'!F49 -> 0 | H30: =SUM(E30:G30) -> 0 | K30: ='Pt 1 Summary of Data'!H49 -> 0 | L30: =SUM(I30:K30) -> 0 | O30: ='Pt 1 Summary of Data'!J49 -> 0 | P30: =SUM(M30:O30) -> 0 | Q30: 944.5930097 | R30: 861.3531164 | S30: ='Pt 1 Summary of Data'!L49 -> 526.75 | T30: =SUM(Q30:S30) -> 2332.696126 | U30: 542.3953294 | V30: 333.1620628 | W30: ='Pt 1 Summary of Data'!N49 -> 229.5833333 | X30: =SUM(U30:W30) -> 1105.140726 | AA30: ='Pt 1 Summary of Data'!P49 -> 0 | AB30: =SUM(Y30:AA30) -> 0
B32: 4. | D32: MLR Calculation (for Health plans or health insurers with at least 1,000 life years in the Total column of Line 3.1)
C33: 4.1 | D33: MLR | H33: =IF(H30<1000,"Not Required to Calculate",H23/H28) -> Not Required to Calculate | L33: =IF(L30<1000,"Not Required to Calculate",L23/L28) -> Not Required to Calculate | P33: =IF(P30<1000,"Not Required to Calculate",P23/P28) -> Not Required to Calculate | T33: =IF(T30<1000,"Not Required to Calculate",T23/T28) -> 0.4046389596 | X33: =IF(X30<1000,"Not Required to Calculate",X23/X28) -> 0.5330482511 | AB33: =IF(AB30<1000,"Not Required to Calculate",AB23/AB28) -> Not Required to Calculate
C37: Cell Keys:
D38: Blank cells require input from Health plan or Health insurer
D39: Grey cells require no data input
D40: Pink cells require no data input - locked down
D41: Blue cells: computed cell (formula cell)

Sheet Pt 5 Additional Responses
B1: Department of Managed Health Care/Department of Insurance
B2: Medical Loss Ratio Reporting Form: Dental Coverage
B3: Part 5 - Additional Responses
B5: Health Plan ID
B6: ='Cover Page'!C7 -> 0
B7: Legal Name | C7: Part 5
B8: ='Cover Page'!C8 -> Madison National Life Insurance Company, Inc.
B9: dBA
B10: ='Cover Page'!C9 -> 0
B11: MLR Reporting Year
B12: ='Cover Page'!C6 -> 2019
C16: Tax Rate
B17: 1. If a health plan or health insurer uses the hightest premium tax rate in the State, the health plan or health insurer must report applicabe highest State health premium tax rate.
B18: 2. If the health plan or health insurer included deferred experience for prior year and excluded deferred experience for current year, provide the total direct written premium and total incurred claims for the deferred experience by market.
B19: Deferred experience for prior year
B20: Deferred experience for current year
B32: 3. If the health plan or health insurer novated any business in the MLR reporting year effective during the reporting year provide the name of the entity to whom the business was sold or transferred and the date of the sale or transfer.
B33: Name of Entity to whom business was sold or transferred | C33: Effective date of sale or transfer
B45: Cell Keys:
B46: Blank cells require input from Health plan or Health insurer
B47: Grey cells require no data input
B48: Pink cells require no data input - locked down
B49: Blue cells: computed cell (formula cell)

Sheet Attestation
B1: Department of Managed Health Care
B2: Medical Loss Ratio Reporting Form: Dental Coverage
B3: Attestation
B5: Health Plan ID
B6: ='Cover Page'!C7 -> 0
B7: Legal Name
B8: ='Cover Page'!C8 -> Madison National Life Insurance Company, Inc. | D8: Attestation
B9: dBA
B10: ='Cover Page'!C9 -> 0
B11: MLR Reporting Year
B12: ='Cover Page'!C6 -> 2019
B17: Attestation Statement
B18: The officers of this reporting Health plan being duly sworn, each attest that he/she is the described officer of the reporting Health plan, and that this MLR Reporting Form, the Company/Health plan Associations, and any supplemental submission that the Health plan includes are full and true statements of all the elements included therein for the MLR reporting year stated above, and that the MLR Reporting Form has been completed in accordance with the Department of Managed Health Care’s guidance and reporting instructions, according to the best of his/her information, knowledge and belief. Furthermore, the scope of this attestation by the described officer includes any related electronic filings and postings for the MLR reporting year stated above and which are required by Department of Managed Health Care.
B23: Chief Executive Officer/President
B27: Chief Financial Officer

Sheet Support
A1: Statutory Byline | E1: 12/31/19 | I1: Updated 6/24/20
A2: 2019 | B2: Dental LOB | E2: Byline for state of
B3: (from Stat byline) | E3: California | G3: Ind | H3: Sm Grp
A4: Premiums | B4: 7910154 | E4: 574084 | G4: ='Pt 2 Premium and Claims'!L22 -> 318028.75 | H4: ='Pt 2 Premium and Claims'!N22 -> 251613.1 | I4: Eric Galles
A5: Inv Income | B5: =23085+1142+3108 -> 27335 | C5: =B5/B4 -> 0.003455684934 | E5: =1675+83+226 -> 1984 | G5: =$G$19*C5 -> 1923.664726 | H5: =$H$19*C5 -> 1175.601479
A6: Claims | B6: 3545095 | C6: =B6/$B$19 -> 0.3214714893 | E6: 178638 | G6: ='Pt 2 Premium and Claims'!L51 -> 98131.45811 | H6: ='Pt 2 Premium and Claims'!N51 -> 91756.25773 | I6: Eric Galles
A7: Commissions | B7: 1267784 | C7: =B7/$B$19 -> 0.1149634666 | E7: 92010 | G7: =G4*C7 -> 36561.68757 | H7: =$H$19*C7 -> 39109.82163
A8: Gen Expenses | B8: 1979316 | C8: =B8/$B$19 -> 0.1794856449 | E8: 143650 | G8: =G4*C8 -> 57081.59529 | H8: =$H$19*C8 -> 61059.84593
A9: Taxes, Licenses, Fees | B9: 324557 | C9: =B9/$B$19 -> 0.02943103701 | E9: 23555 | G9: =G4*C9 -> 9359.915911 | H9: =$H$19*C9 -> 10012.24686
A10: Net | B10: =B4+B5-SUM(B6:B9) -> 820737 | C10: =B10/$B$19 -> 0.07442495778 | E10: =E4+E5-SUM(E6:E9) -> 138215 | G10: =G4+G5-SUM(G6:G9) -> 118817.7578 | H10: =H4+H5-SUM(H6:H9) -> 50850.52932
A11: Fed Taxes | B11: 169474 | C11: =B11/B10 -> 0.2064900206 | E11: 28540 | G11: =G10*C11 -> 24534.68126 | H11: =H10*C11 -> 10500.12684
A12: Net Income | B12: =B10-B11 -> 651263 | C12: =B12/$B$19 -> 0.05905694672 | E12: =E10-E11 -> 109675 | G12: =G10-G11 -> 94283.07658 | H12: =H10-H11 -> 40350.40248
A16: Statutory Byline | E16: 12/31/18
A17: 2018 | B17: Dental LOB | E17: Byline for state of
B18: (from Stat byline) | E18: California | G18: Ind | H18: Sm Grp
A19: Premiums | B19: 11027712 | E19: 814167 | G19: 556666.6994 | H19: 340193.4788 | I19: Eric Galles
A20: Inv Income | B20: 17970 | C20: =B20/B19 -> 0.00162953113 | E20: 1327 | G20: 907.1057159 | H20: 554.355864
A21: Claims | B21: 4745770 | C21: =B21/$B$19 -> 0.4303494687 | E21: 262964 | G21: 158643.2799 | H21: 134691.1855 | I21: Eric Galles
A22: Commissions | B22: 1715806 | C22: =B22/$B$19 -> 0.155590389 | E22: 126677 | G22: 86611.98831 | H22: 52930.83571
A23: Gen Expenses | B23: 2530299 | C23: =B23/$B$19 -> 0.2294491369 | E23: 186810 | G23: 127726.6937 | H23: 78057.10008
A24: Taxes, Licenses, Fees | B24: 468525 | C24: =B24/$B$19 -> 0.04248614763 | E24: 34591 | G24: 23650.62357 | H24: 14453.51036
A25: Net | B25: =B19+B20-SUM(B21:B24) -> 1585282 | C25: =B25/$B$19 -> 0.1437543889 | E25: =E19+E20-SUM(E21:E24) -> 204452 | G25: 160941.2196 | H25: 60615.20302
A26: Fed Taxes | B26: 315642 | C26: =B26/B25 -> 0.1991077928 | E26: 40708 | G26: 32044.65101 | H26: 12068.95928
A27: Net Income | B27: =B25-B26 -> 1269640 | C27: =B27/$B$19 -> 0.1151317699 | E27: =E25-E26 -> 163744 | G27: 128896.5686 | H27: 48546.24373
A30: Statutory Byline
A31: 2017 | B31: Dental LOB
B32: (from Stat byline) | E32: Ind | F32: Sm Grp
A33: Premiums | B33: 15182845 | E33: 507231 | F33: 544862
A34: Inv Income | B34: =46771+2761 -> 49532 | C34: =B34/B33 -> 0.003262366177 | E34: 1654.773258 | F34: 1777.53936
A35: Claims | B35: 6014080 | C35: =B35/$B$33 -> 0.3961102152 | E35: 170269 | F35: 222707
A36: Commissions | B36: 2200130 | C36: =B36/$B$33 -> 0.1449089416 | E36: 73502.30738 | F36: 78955.37576
A37: Gen Expenses | B37: 3532757 | C37: =B37/$B$33 -> 0.2326808316 | E37: 118022.9309 | F37: 126778.9432
A38: Taxes, Licenses, Fees | B38: 436564 | C38: =B38/$B$33 -> 0.02875376782 | E38: 14584.80241 | F38: 15666.83544
A39: Net | B39: =B33+B34-SUM(B35:B38) -> 3048846 | C39: =B39/$B$33 -> 0.20080861 | E39: 132506.7326 | F39: 102531.3849
A40: Fed Taxes | B40: 1249554 | C40: =B40/B39 -> 0.4098449053 | E40: 54307.20927 | F40: 42021.96574
A41: Net Income | B41: =B39-B40 -> 1799292 | C41: =B41/$B$33 -> 0.1185082242 | E41: 78199.52334 | F41: 60509.41918
A44: Statutory Byline
A45: 2016 | B45: Dental LOB
B46: (from Stat byline) | E46: Ind | F46: Sm Grp
A47: Premiums | B47: 18780550 | E47: 558874.4662 | F47: 1387886
A48: Inv Income | B48: 52460 | C48: 0.002793315425 | E48: 1561.112667 | F48: 3876.803372
A49: Claims | B49: 10375065 | C49: 0.6833412974 | E49: 200258.3268 | F49: 611300
A50: Commissions | B50: 2917174 | C50: 0.1921361905 | E50: 107380.0109 | F50: 266663.129
A51: Gen Expenses | B51: 3552466 | C51: 0.2339789414 | E51: 365.2674892 | F51: 907.0903488
A52: Taxes, Licenses, Fees | B52: 665120 | C52: 0.0438073365 | E52: 8772.78391 | F52: 26779.4248
A53: Net | B53: 1323185 | C53: 0.08715000384 | E53: 243659.1897 | F53: 486113.1593
A54: Fed Taxes | B54: 453186 | C54: 0.3424963252 | E54: 83452.37708 | F54: 166491.9707
A55: Net Income | B55: 869999 | E55: 160206.8127 | F55: 319621.1886

Sheet Instructions
A1: Instructions for filling out form in order of completion:
A3: Part 2:
A4: Eric Galles filled out green boxes for 2017 data trued up as of 3/31/18 col L and N
A5: I filled in all data for 12/31/17 columns K and M based upon YE 2017 Dental data from "Group A&H 2017 Premium" and "Group A&H 2017 Claim" reports
A6: Also, I pulled reserve data from the financials for the Dental lob.
A7: I allocated premiums, claims, and reserves based upon Eric's allocation in col L and N.
A9: Part 1:
A10: Premium and Claims data references Part 2.
A11: Federal Taxes, Prem Taxes, Comm, Expenses for Col L & N for 3/31/18 come from "Support" tab which comes from Stat byline Dental Column allocated to Ind & Sm Grp
A12: Federal Taxes, Prem Taxes, Comm, Expenses for Col K & M for 12/31/17 are allocations based upon data in Col L & N.
A13: Data for Lines 5 come from Eric Galles with the number from Line 5.1 Covered Lives equaling what we have in support from Policy Inforce Summary file.
A14: Fill in Net Investment Income on Line 6 from Dental column from Stat byline adjusted for % for state of CA.
A16: Part 3:
A17: This tab reflects how I allocated various expenses to the state of California.
A19: Part 4:
A20: Current Year pulls in data from other parts of file.
A21: Prior Year data comes from Eric Galles
A23: Part 5:
A24: Nothing to complete.
